[Event "Titled Tuesday Blitz March 28 Late 2023"]
[White "Domingo Nunez, Alejandro"]
[Black "reevecanada"]
[WhiteFideId "22245561"]
[WhiteElo "2230"]
[BlackElo "2437"]
[Result "1-0"]
[Round "03"]
[TimeControl "180+2"]
[Date "2023.03.28"]
[WhiteClock "0:01:21"]
[BlackClock "0:01:00"]

1. e4 {[%clk 0:03:00]}  c5 {[%clk 0:02:58]} 2. d4 {[%clk 0:03:00]}  cxd4 {[%clk 0:02:57]} 3. c3 {[%clk 0:03:01]}  dxc3 {[%clk 0:02:57]} 4. Nxc3 {[%clk 0:03:01]}  d6 {[%clk 0:02:55]} 5. Nf3 {[%clk 0:03:02]}  Nf6 {[%clk 0:02:54]} 6. Bc4 {[%clk 0:03:03]}  Nc6 {[%clk 0:02:53]} 7. e5 {[%clk 0:03:03]}  dxe5 {[%clk 0:02:48]} 8. Qxd8+ {[%clk 0:03:02]}  Nxd8 {[%clk 0:02:48]} 9. Nb5 {[%clk 0:03:02]}  Be6 {[%clk 0:02:28]} 10. Nc7+ {[%clk 0:02:49]}  Kd7 {[%clk 0:02:27]} 11. Nxa8 {[%clk 0:02:49]}  Bxc4 {[%clk 0:02:26]} 12. Nxe5+ {[%clk 0:02:49]}  Kc8 {[%clk 0:02:26]} 13. Nxc4 {[%clk 0:02:49]}  Kb8 {[%clk 0:02:27]} 14. Be3 {[%clk 0:02:30]}  Kxa8 {[%clk 0:02:24]} 15. Rd1 {[%clk 0:02:30]}  Nc6 {[%clk 0:02:22]} 16. Ne5 {[%clk 0:02:25]}  e6 {[%clk 0:02:16]} 17. Nxf7 {[%clk 0:02:16]}  Bb4+ {[%clk 0:02:10]} 18. Ke2 {[%clk 0:02:16]}  Rf8 {[%clk 0:02:09]} 19. Ng5 {[%clk 0:02:16]}  e5 {[%clk 0:02:06]} 20. f3 {[%clk 0:02:11]}  Re8 {[%clk 0:02:04]} 21. Ne4 {[%clk 0:02:09]}  Re7 {[%clk 0:01:51]} 22. a3 {[%clk 0:02:01]}  Ba5 {[%clk 0:01:47]} 23. Bc5 {[%clk 0:01:58]}  Rc7 {[%clk 0:01:45]} 24. Rc1 {[%clk 0:01:45]}  Nd5 {[%clk 0:01:39]} 25. Rhd1 {[%clk 0:01:45]}  Nf4+ {[%clk 0:01:31]} 26. Kf1 {[%clk 0:01:43]}  Bb6 {[%clk 0:01:13]} 27. Bxb6 {[%clk 0:01:22]}  axb6 {[%clk 0:01:14]} 28. Nd6 {[%clk 0:01:22]}  g5 {[%clk 0:01:03]} 29. Nb5 {[%clk 0:01:22]}  Rf7 {[%clk 0:01:03]} 30. Rd8+ {[%clk 0:01:20]}  Nxd8 {[%clk 0:01:00]} 31. Rc8# {[%clk 0:01:21]} 1-0


[Site "https://www.chess.com"]

[Event "Titled Tuesday Blitz March 28 Late 2023"]
[White "Gonzalez, Francisco Silva"]
[Black "Tilicheev, Viacheslav"]
[WhiteFideId "1512285"]
[BlackFideId "24114928"]
[WhiteElo "2074"]
[BlackElo "2415"]
[Result "0-1"]
[Round "03"]
[TimeControl "180+2"]
[Date "2023.03.28"]
[WhiteClock "0:00:12"]
[BlackClock "0:00:36"]

1. d4 {[%clk 0:03:00]}  Nf6 {[%clk 0:02:56]} 2. c4 {[%clk 0:03:00]}  c5 {[%clk 0:02:56]} 3. d5 {[%clk 0:02:59]}  b5 {[%clk 0:02:55]} 4. Nd2 {[%clk 0:02:59]}  e6 {[%clk 0:02:55]} 5. dxe6 {[%clk 0:02:59]}  fxe6 {[%clk 0:02:54]} 6. e4 {[%clk 0:02:59]}  Bb7 {[%clk 0:02:39]} 7. e5 {[%clk 0:02:57]}  Ne4 {[%clk 0:02:39]} 8. Ngf3 {[%clk 0:02:57]}  Be7 {[%clk 0:02:37]} 9. Bd3 {[%clk 0:02:53]}  Nxd2 {[%clk 0:02:31]} 10. Bxd2 {[%clk 0:02:53]}  bxc4 {[%clk 0:02:32]} 11. Bxc4 {[%clk 0:02:52]}  Nc6 {[%clk 0:02:32]} 12. Bc3 {[%clk 0:02:52]}  O-O {[%clk 0:02:27]} 13. O-O {[%clk 0:02:52]}  Rb8 {[%clk 0:02:26]} 14. Re1 {[%clk 0:02:50]}  Qe8 {[%clk 0:02:13]} 15. Re3 {[%clk 0:02:44]}  Qh5 {[%clk 0:02:10]} 16. Qxd7 {[%clk 0:02:41]}  Kh8 {[%clk 0:02:03]} 17. Qxe6 {[%clk 0:02:38]}  Rbe8 {[%clk 0:01:58]} 18. Qh3 {[%clk 0:02:28]}  Qxh3 {[%clk 0:01:52]} 19. gxh3 {[%clk 0:02:26]}  Rxf3 {[%clk 0:01:46]} 20. Rxf3 {[%clk 0:02:23]}  Nxe5 {[%clk 0:01:47]} 21. Bxe5 {[%clk 0:02:22]}  Bxf3 {[%clk 0:01:46]} 22. Bf1 {[%clk 0:01:46]}  Bf6 {[%clk 0:01:43]} 23. Bc3 {[%clk 0:01:41]}  Bxc3 {[%clk 0:01:38]} 24. bxc3 {[%clk 0:01:40]}  Re6 {[%clk 0:01:39]} 25. Bd3 {[%clk 0:01:39]}  Rd6 {[%clk 0:01:37]} 26. Re1 {[%clk 0:01:37]}  Kg8 {[%clk 0:01:29]} 27. Bc4+ {[%clk 0:01:35]}  Kf8 {[%clk 0:01:30]} 28. Kf1 {[%clk 0:01:26]}  Rd2 {[%clk 0:01:21]} 29. Re3 {[%clk 0:01:21]}  Rd1+ {[%clk 0:01:22]} 30. Re1 {[%clk 0:01:21]}  Bg2+ {[%clk 0:01:22]} 31. Ke2 {[%clk 0:01:20]}  Bf3+ {[%clk 0:01:22]} 32. Kf1 {[%clk 0:01:19]}  Bg2+ {[%clk 0:00:59]} 33. Ke2 {[%clk 0:01:18]}  Rd6 {[%clk 0:01:00]} 34. h4 {[%clk 0:01:14]}  Rh6 {[%clk 0:01:00]} 35. Rg1 {[%clk 0:00:56]}  Rxh4 {[%clk 0:00:59]} 36. Rxg2 {[%clk 0:00:53]}  Rxc4 {[%clk 0:01:00]} 37. Kd3 {[%clk 0:00:49]}  Ra4 {[%clk 0:01:01]} 38. f3 {[%clk 0:00:46]}  Kf7 {[%clk 0:01:01]} 39. Rg5 {[%clk 0:00:44]}  Ra5 {[%clk 0:00:56]} 40. Rf5+ {[%clk 0:00:38]}  Ke6 {[%clk 0:00:55]} 41. Rf4 {[%clk 0:00:27]}  Rxa2 {[%clk 0:00:55]} 42. Rh4 {[%clk 0:00:27]}  h6 {[%clk 0:00:49]} 43. Re4+ {[%clk 0:00:25]}  Kd5 {[%clk 0:00:46]} 44. Re7 {[%clk 0:00:24]}  c4+ {[%clk 0:00:45]} 45. Ke3 {[%clk 0:00:24]}  g5 {[%clk 0:00:45]} 46. Rd7+ {[%clk 0:00:23]}  Ke5 {[%clk 0:00:44]} 47. Rh7 {[%clk 0:00:22]}  Rxh2 {[%clk 0:00:42]} 48. Rb7 {[%clk 0:00:22]}  Rc2 {[%clk 0:00:41]} 49. Rxa7 {[%clk 0:00:19]}  Rxc3+ {[%clk 0:00:41]} 50. Kf2 {[%clk 0:00:19]}  h5 {[%clk 0:00:39]} 51. Ra5+ {[%clk 0:00:18]}  Kf4 {[%clk 0:00:39]} 52. Ke2 {[%clk 0:00:17]}  Rxf3 {[%clk 0:00:38]} 53. Rc5 {[%clk 0:00:18]}  Re3+ {[%clk 0:00:38]} 54. Kf2 {[%clk 0:00:18]}  Re4 {[%clk 0:00:39]} 55. Rc8 {[%clk 0:00:16]}  h4 {[%clk 0:00:38]} 56. Rh8 {[%clk 0:00:16]}  Kg4 {[%clk 0:00:37]} 57. Rc8 {[%clk 0:00:14]}  Rf4+ {[%clk 0:00:37]} 58. Ke3 {[%clk 0:00:14]}  h3 {[%clk 0:00:36]} 59. Rh8 {[%clk 0:00:14]}  Kg3 {[%clk 0:00:36]} 60. Rh5 {[%clk 0:00:14]}  Rg4 {[%clk 0:00:35]} 61. Kd2 {[%clk 0:00:13]}  Kg2 {[%clk 0:00:35]} 62. Kc3 {[%clk 0:00:12]}  h2 {[%clk 0:00:36]} 0-1


[Site "https://www.chess.com"]

[Event "Titled Tuesday Blitz March 28 Late 2023"]
[White "Cuenca Jimenez, Jose Fernando"]
[Black "Rios Escobar, Adan"]
[WhiteFideId "2255570"]
[BlackFideId "3403645"]
[WhiteElo "2429"]
[BlackElo "2422"]
[Result "1-0"]
[Round "03"]
[TimeControl "180+2"]
[Date "2023.03.28"]
[WhiteClock "0:00:07"]
[BlackClock "0:00:05"]

1. c4 {[%clk 0:03:00]}  Nf6 {[%clk 0:02:59]} 2. Nc3 {[%clk 0:02:58]}  g6 {[%clk 0:03:00]} 3. e4 {[%clk 0:02:59]}  d6 {[%clk 0:02:59]} 4. d4 {[%clk 0:02:58]}  Bg7 {[%clk 0:02:59]} 5. h3 {[%clk 0:02:59]}  O-O {[%clk 0:02:58]} 6. Be3 {[%clk 0:02:59]}  Nc6 {[%clk 0:02:59]} 7. Nf3 {[%clk 0:02:42]}  e5 {[%clk 0:02:59]} 8. d5 {[%clk 0:02:42]}  Nd4 {[%clk 0:02:58]} 9. Be2 {[%clk 0:02:29]}  Nxe2 {[%clk 0:02:51]} 10. Qxe2 {[%clk 0:02:28]}  Nh5 {[%clk 0:02:49]} 11. g3 {[%clk 0:02:22]}  Bd7 {[%clk 0:02:42]} 12. Nd2 {[%clk 0:02:18]}  Qe8 {[%clk 0:02:38]} 13. Nb5 {[%clk 0:01:25]}  Qb8 {[%clk 0:02:26]} 14. c5 {[%clk 0:01:19]}  a6 {[%clk 0:02:25]} 15. Nc3 {[%clk 0:01:18]}  Qe8 {[%clk 0:02:22]} 16. cxd6 {[%clk 0:01:16]}  cxd6 {[%clk 0:02:23]} 17. Nc4 {[%clk 0:01:16]}  Qe7 {[%clk 0:02:16]} 18. Nb6 {[%clk 0:01:16]}  Rad8 {[%clk 0:02:14]} 19. Nxd7 {[%clk 0:01:15]}  Rxd7 {[%clk 0:02:14]} 20. O-O-O {[%clk 0:01:09]}  Rc8 {[%clk 0:02:13]} 21. Kb1 {[%clk 0:01:09]}  b5 {[%clk 0:02:05]} 22. Rc1 {[%clk 0:01:04]}  Qe8 {[%clk 0:02:03]} 23. Qf3 {[%clk 0:01:00]}  Rdc7 {[%clk 0:01:55]} 24. Ne2 {[%clk 0:00:48]}  Rxc1+ {[%clk 0:01:49]} 25. Rxc1 {[%clk 0:00:47]}  Rxc1+ {[%clk 0:01:49]} 26. Bxc1 {[%clk 0:00:44]}  Nf6 {[%clk 0:01:41]} 27. Qd3 {[%clk 0:00:42]}  Qc8 {[%clk 0:01:35]} 28. g4 {[%clk 0:00:41]}  Nd7 {[%clk 0:01:31]} 29. Be3 {[%clk 0:00:40]}  Qc7 {[%clk 0:01:19]} 30. Qc3 {[%clk 0:00:35]}  Qxc3 {[%clk 0:01:11]} 31. Nxc3 {[%clk 0:00:35]}  Bf8 {[%clk 0:01:03]} 32. a4 {[%clk 0:00:35]}  bxa4 {[%clk 0:01:01]} 33. Nxa4 {[%clk 0:00:35]}  Be7 {[%clk 0:00:50]} 34. Kc2 {[%clk 0:00:35]}  Kf8 {[%clk 0:00:42]} 35. Kc3 {[%clk 0:00:33]}  Ke8 {[%clk 0:00:40]} 36. Kc4 {[%clk 0:00:26]}  Bd8 {[%clk 0:00:36]} 37. b4 {[%clk 0:00:24]}  h5 {[%clk 0:00:28]} 38. f3 {[%clk 0:00:23]}  hxg4 {[%clk 0:00:24]} 39. hxg4 {[%clk 0:00:24]}  f6 {[%clk 0:00:17]} 40. b5 {[%clk 0:00:24]}  axb5+ {[%clk 0:00:17]} 41. Kxb5 {[%clk 0:00:24]}  Nb8 {[%clk 0:00:09]} 42. Ba7 {[%clk 0:00:23]}  Bc7 {[%clk 0:00:08]} 43. Bxb8 {[%clk 0:00:22]}  Bxb8 {[%clk 0:00:08]} 44. Kc6 {[%clk 0:00:22]}  Kd8 {[%clk 0:00:09]} 45. Nb6 {[%clk 0:00:20]}  Bc7 {[%clk 0:00:08]} 46. Nc4 {[%clk 0:00:19]}  f5 {[%clk 0:00:05]} 47. gxf5 {[%clk 0:00:18]}  gxf5 {[%clk 0:00:05]} 48. Nxd6 {[%clk 0:00:17]}  fxe4 {[%clk 0:00:04]} 49. fxe4 {[%clk 0:00:11]}  Bb8 {[%clk 0:00:05]} 50. Nf5 {[%clk 0:00:10]}  Ke8 {[%clk 0:00:03]} 51. d6 {[%clk 0:00:10]}  Kd8 {[%clk 0:00:04]} 52. Kd5 {[%clk 0:00:09]}  Kd7 {[%clk 0:00:03]} 53. Kxe5 {[%clk 0:00:10]}  Ba7 {[%clk 0:00:04]} 54. Kd5 {[%clk 0:00:10]}  Bg1 {[%clk 0:00:02]} 55. e5 {[%clk 0:00:10]}  Bh2 {[%clk 0:00:01]} 56. e6+ {[%clk 0:00:11]}  Ke8 {[%clk 0:00:02]} 57. Ng7+ {[%clk 0:00:09]}  Kf8 {[%clk 0:00:01]} 58. e7+ {[%clk 0:00:09]}  Kxg7 {[%clk 0:00:02]} 59. e8=Q {[%clk 0:00:09]}  Bxd6 {[%clk 0:00:02]} 60. Kxd6 {[%clk 0:00:09]}  Kf6 {[%clk 0:00:03]} 61. Qf8+ {[%clk 0:00:09]}  Kg6 {[%clk 0:00:03]} 62. Ke5 {[%clk 0:00:10]}  Kh7 {[%clk 0:00:02]} 63. Qf1 {[%clk 0:00:08]}  Kg8 {[%clk 0:00:03]} 64. Ke6 {[%clk 0:00:08]}  Kg7 {[%clk 0:00:03]} 65. Qg2+ {[%clk 0:00:07]}  Kh8 {[%clk 0:00:04]} 66. Kf7 {[%clk 0:00:07]}  Kh7 {[%clk 0:00:05]} 67. Qh2# {[%clk 0:00:07]} 1-0


[Site "https://www.chess.com"]

[Event "Titled Tuesday Blitz March 28 Late 2023"]
[White "Vafin, Ayrat"]
[Black "Ozer, Omer Faruk"]
[WhiteFideId "4146530"]
[BlackFideId "6354564"]
[WhiteElo "2317"]
[BlackElo "2260"]
[Result "0-1"]
[Round "03"]
[TimeControl "180+2"]
[Date "2023.03.28"]
[WhiteClock "0:00:26"]
[BlackClock "0:02:10"]

1. Nf3 {[%clk 0:03:00]}  Nf6 {[%clk 0:02:59]} 2. g3 {[%clk 0:03:01]}  b6 {[%clk 0:02:59]} 3. Bg2 {[%clk 0:03:01]}  Bb7 {[%clk 0:02:59]} 4. c4 {[%clk 0:03:01]}  c5 {[%clk 0:02:58]} 5. d4 {[%clk 0:02:58]}  cxd4 {[%clk 0:02:58]} 6. Qxd4 {[%clk 0:02:59]}  Nc6 {[%clk 0:02:58]} 7. Qd1 {[%clk 0:02:57]}  Rc8 {[%clk 0:02:55]} 8. b3 {[%clk 0:02:56]}  d5 {[%clk 0:02:50]} 9. cxd5 {[%clk 0:02:53]}  Qxd5 {[%clk 0:02:50]} 10. Qxd5 {[%clk 0:02:53]}  Nxd5 {[%clk 0:02:50]} 11. Bb2 {[%clk 0:02:35]}  Ncb4 {[%clk 0:02:48]} 12. Na3 {[%clk 0:02:35]}  Nc2+ {[%clk 0:02:43]} 13. Nxc2 {[%clk 0:02:34]}  Rxc2 {[%clk 0:02:44]} 14. Bd4 {[%clk 0:02:10]}  f6 {[%clk 0:02:43]} 15. Kd1 {[%clk 0:01:41]}  Rc8 {[%clk 0:02:30]} 16. Rc1 {[%clk 0:01:40]}  Rd8 {[%clk 0:02:30]} 17. Ke1 {[%clk 0:01:26]}  e5 {[%clk 0:02:28]} 18. Bb2 {[%clk 0:01:17]}  Bb4+ {[%clk 0:02:27]} 19. Kf1 {[%clk 0:01:17]}  O-O {[%clk 0:02:26]} 20. a3 {[%clk 0:01:12]}  Be7 {[%clk 0:02:26]} 21. Ke1 {[%clk 0:01:09]}  Rc8 {[%clk 0:02:20]} 22. Rxc8 {[%clk 0:01:08]}  Rxc8 {[%clk 0:02:20]} 23. Kd1 {[%clk 0:01:09]}  Nc3+ {[%clk 0:02:15]} 24. Bxc3 {[%clk 0:00:30]}  Rxc3 {[%clk 0:02:16]} 25. Kd2 {[%clk 0:00:30]}  Rxb3 {[%clk 0:02:15]} 26. Bh3 {[%clk 0:00:28]}  Kf7 {[%clk 0:02:13]} 27. Rc1 {[%clk 0:00:26]}  Bc5 {[%clk 0:02:10]} 0-1


[Site "https://www.chess.com"]

[Event "Titled Tuesday Blitz March 28 Late 2023"]
[White "Rottenwohrer Suarez, Juan"]
[Black "Sai Krishna G V"]
[WhiteFideId "32068182"]
[BlackFideId "5028280"]
[WhiteElo "2174"]
[BlackElo "2359"]
[Result "0-1"]
[Round "03"]
[TimeControl "180+2"]
[Date "2023.03.28"]
[WhiteClock "0:00:40"]
[BlackClock "0:01:31"]

1. e4 {[%clk 0:03:00]}  c5 {[%clk 0:02:59]} 2. Nf3 {[%clk 0:03:01]}  d6 {[%clk 0:02:58]} 3. d4 {[%clk 0:03:00]}  cxd4 {[%clk 0:02:59]} 4. Nxd4 {[%clk 0:03:01]}  Nf6 {[%clk 0:03:00]} 5. Nc3 {[%clk 0:03:01]}  a6 {[%clk 0:03:00]} 6. Be3 {[%clk 0:02:59]}  e5 {[%clk 0:02:59]} 7. Nb3 {[%clk 0:02:50]}  Be7 {[%clk 0:02:59]} 8. Be2 {[%clk 0:02:48]}  O-O {[%clk 0:02:58]} 9. O-O {[%clk 0:02:49]}  Be6 {[%clk 0:02:50]} 10. f4 {[%clk 0:02:34]}  Qc7 {[%clk 0:02:49]} 11. Kh1 {[%clk 0:02:30]}  Nbd7 {[%clk 0:02:47]} 12. f5 {[%clk 0:01:56]}  Bc4 {[%clk 0:02:45]} 13. g4 {[%clk 0:01:56]}  h6 {[%clk 0:02:35]} 14. g5 {[%clk 0:01:46]}  hxg5 {[%clk 0:02:35]} 15. Bxg5 {[%clk 0:01:45]}  d5 {[%clk 0:02:22]} 16. exd5 {[%clk 0:01:37]}  Nxd5 {[%clk 0:02:04]} 17. Nxd5 {[%clk 0:01:28]}  Bxd5+ {[%clk 0:01:58]} 18. Qxd5 {[%clk 0:01:29]}  Bxg5 {[%clk 0:01:59]} 19. c4 {[%clk 0:01:20]}  Nf6 {[%clk 0:01:57]} 20. Qg2 {[%clk 0:01:16]}  Bh6 {[%clk 0:01:56]} 21. c5 {[%clk 0:01:09]}  e4 {[%clk 0:01:54]} 22. Rad1 {[%clk 0:01:07]}  Qe5 {[%clk 0:01:53]} 23. Bc4 {[%clk 0:01:05]}  Rad8 {[%clk 0:01:50]} 24. Rxd8 {[%clk 0:01:04]}  Rxd8 {[%clk 0:01:51]} 25. Qg6 {[%clk 0:00:56]}  Nd5 {[%clk 0:01:44]} 26. Qh5 {[%clk 0:00:40]}  e3 {[%clk 0:01:37]} 27. Rg1 {[%clk 0:00:39]}  Qe4+ {[%clk 0:01:33]} 28. Rg2 {[%clk 0:00:40]}  Qxg2+ {[%clk 0:01:31]} 0-1


[Site "https://www.chess.com"]

[Event "Titled Tuesday Blitz March 28 Late 2023"]
[White "Bjelobrk, Igor"]
[Black "Silva, Pedro Gil Ferreira Da"]
[WhiteFideId "4300726"]
[BlackFideId "1946102"]
[WhiteElo "2335"]
[BlackElo "2255"]
[Result "0-1"]
[Round "03"]
[TimeControl "180+2"]
[Date "2023.03.28"]
[WhiteClock "0:00:01"]
[BlackClock "0:00:18"]

1. d4 {[%clk 0:02:58]}  Nf6 {[%clk 0:02:59]} 2. c4 {[%clk 0:02:55]}  e6 {[%clk 0:02:54]} 3. g3 {[%clk 0:02:55]}  Bb4+ {[%clk 0:02:54]} 4. Bd2 {[%clk 0:02:54]}  c5 {[%clk 0:02:55]} 5. Bxb4 {[%clk 0:02:47]}  cxb4 {[%clk 0:02:55]} 6. Bg2 {[%clk 0:02:47]}  O-O {[%clk 0:02:52]} 7. a3 {[%clk 0:02:44]}  bxa3 {[%clk 0:02:50]} 8. Nxa3 {[%clk 0:02:40]}  d6 {[%clk 0:02:50]} 9. Nf3 {[%clk 0:02:38]}  Nc6 {[%clk 0:02:48]} 10. O-O {[%clk 0:02:38]}  e5 {[%clk 0:02:48]} 11. Nb5 {[%clk 0:02:24]}  Bg4 {[%clk 0:02:37]} 12. h3 {[%clk 0:02:21]}  Bxf3 {[%clk 0:02:36]} 13. Bxf3 {[%clk 0:02:22]}  a6 {[%clk 0:02:36]} 14. dxe5 {[%clk 0:02:16]}  dxe5 {[%clk 0:02:35]} 15. Nd6 {[%clk 0:02:14]}  Qc7 {[%clk 0:02:34]} 16. c5 {[%clk 0:02:10]}  Rfd8 {[%clk 0:02:30]} 17. Rc1 {[%clk 0:01:41]}  e4 {[%clk 0:02:23]} 18. Bg2 {[%clk 0:01:40]}  Rd7 {[%clk 0:02:10]} 19. Qa4 {[%clk 0:01:36]}  Re7 {[%clk 0:01:52]} 20. Nxe4 {[%clk 0:01:29]}  Nxe4 {[%clk 0:01:49]} 21. Bxe4 {[%clk 0:01:28]}  Rae8 {[%clk 0:01:48]} 22. Bf3 {[%clk 0:01:25]}  Ne5 {[%clk 0:01:40]} 23. Bg2 {[%clk 0:01:25]}  Ng6 {[%clk 0:01:32]} 24. e3 {[%clk 0:01:22]}  h5 {[%clk 0:01:28]} 25. h4 {[%clk 0:01:21]}  Ne5 {[%clk 0:01:27]} 26. Rfd1 {[%clk 0:01:08]}  g6 {[%clk 0:01:23]} 27. c6 {[%clk 0:00:53]}  bxc6 {[%clk 0:01:11]} 28. Bxc6 {[%clk 0:00:51]}  Rd8 {[%clk 0:01:01]} 29. Rxd8+ {[%clk 0:00:49]}  Qxd8 {[%clk 0:01:02]} 30. Qxa6 {[%clk 0:00:46]}  Qd2 {[%clk 0:00:59]} 31. Qa1 {[%clk 0:00:19]}  Ng4 {[%clk 0:00:53]} 32. Rf1 {[%clk 0:00:19]}  Rxe3 {[%clk 0:00:49]} 33. Qa8+ {[%clk 0:00:15]}  Kg7 {[%clk 0:00:47]} 34. Bg2 {[%clk 0:00:14]}  Rb3 {[%clk 0:00:37]} 35. Qd5 {[%clk 0:00:13]}  Rxb2 {[%clk 0:00:36]} 36. Qxd2 {[%clk 0:00:12]}  Rxd2 {[%clk 0:00:36]} 37. Bh3 {[%clk 0:00:12]}  Ne5 {[%clk 0:00:35]} 38. Ra1 {[%clk 0:00:12]}  Nd3 {[%clk 0:00:34]} 39. Rf1 {[%clk 0:00:11]}  f5 {[%clk 0:00:33]} 40. Bg2 {[%clk 0:00:11]}  Kf6 {[%clk 0:00:34]} 41. Bf3 {[%clk 0:00:11]}  f4 {[%clk 0:00:34]} 42. Kg2 {[%clk 0:00:10]}  Kf5 {[%clk 0:00:32]} 43. Kg1 {[%clk 0:00:08]}  Ne5 {[%clk 0:00:32]} 44. Bg2 {[%clk 0:00:08]}  Kg4 {[%clk 0:00:24]} 45. Re1 {[%clk 0:00:06]}  Nd3 {[%clk 0:00:16]} 46. Rf1 {[%clk 0:00:01]}  fxg3 {[%clk 0:00:16]} 47. fxg3 {[%clk 0:00:02]}  Kxg3 {[%clk 0:00:17]} 48. Rf6 {[%clk 0:00:01]}  Rxg2+ {[%clk 0:00:16]} 49. Kf1 {[%clk 0:00:01]}  Rf2+ {[%clk 0:00:17]} 50. Rxf2 {[%clk 0:00:01]}  Nxf2 {[%clk 0:00:18]} 0-1


[Site "https://www.chess.com"]

[Event "Titled Tuesday Blitz March 28 Late 2023"]
[White "Ribeiro, Matheus Mendes Domingues"]
[Black "Spata, German"]
[WhiteFideId "324226923"]
[BlackFideId "113026"]
[WhiteElo "2168"]
[BlackElo "2238"]
[Result "1/2-1/2"]
[Round "03"]
[TimeControl "180+2"]
[Date "2023.03.28"]
[WhiteClock "0:00:32"]
[BlackClock "0:00:10"]

1. c4 {[%clk 0:01:20]}  e6 {[%clk 0:02:53]} 2. Nf3 {[%clk 0:01:20]}  d5 {[%clk 0:02:54]} 3. e3 {[%clk 0:01:20]}  Nf6 {[%clk 0:02:54]} 4. Nc3 {[%clk 0:01:21]}  Be7 {[%clk 0:02:54]} 5. b3 {[%clk 0:01:22]}  O-O {[%clk 0:02:54]} 6. Bb2 {[%clk 0:01:22]}  b6 {[%clk 0:02:54]} 7. cxd5 {[%clk 0:01:22]}  Nxd5 {[%clk 0:02:54]} 8. Nxd5 {[%clk 0:01:23]}  Qxd5 {[%clk 0:02:51]} 9. Bc4 {[%clk 0:01:24]}  Qd8 {[%clk 0:02:50]} 10. O-O {[%clk 0:01:23]}  Ba6 {[%clk 0:02:47]} 11. Qe2 {[%clk 0:01:22]}  Bxc4 {[%clk 0:02:46]} 12. Qxc4 {[%clk 0:01:23]}  c5 {[%clk 0:02:43]} 13. Rfd1 {[%clk 0:01:23]}  Nd7 {[%clk 0:02:41]} 14. d4 {[%clk 0:01:23]}  Bf6 {[%clk 0:02:39]} 15. Rab1 {[%clk 0:01:17]}  cxd4 {[%clk 0:02:19]} 16. Nxd4 {[%clk 0:01:11]}  Rc8 {[%clk 0:02:18]} 17. Nc6 {[%clk 0:01:09]}  Qc7 {[%clk 0:02:12]} 18. Bxf6 {[%clk 0:01:06]}  Nxf6 {[%clk 0:02:09]} 19. Rbc1 {[%clk 0:00:58]}  h6 {[%clk 0:02:02]} 20. Nb4 {[%clk 0:00:57]}  Qxc4 {[%clk 0:01:58]} 21. Rxc4 {[%clk 0:00:58]}  Rxc4 {[%clk 0:01:58]} 22. bxc4 {[%clk 0:00:59]}  Rc8 {[%clk 0:01:58]} 23. Rc1 {[%clk 0:00:59]}  Ne4 {[%clk 0:01:55]} 24. Na6 {[%clk 0:00:57]}  Nc5 {[%clk 0:01:49]} 25. Nxc5 {[%clk 0:00:57]}  Rxc5 {[%clk 0:01:50]} 26. a4 {[%clk 0:00:57]}  a6 {[%clk 0:01:46]} 27. g3 {[%clk 0:00:55]}  b5 {[%clk 0:01:45]} 28. axb5 {[%clk 0:00:56]}  axb5 {[%clk 0:01:46]} 29. Kf1 {[%clk 0:00:50]}  bxc4 {[%clk 0:01:26]} 30. Ke2 {[%clk 0:00:50]}  Kf8 {[%clk 0:01:18]} 31. Kd2 {[%clk 0:00:51]}  Rd5+ {[%clk 0:01:09]} 32. Ke2 {[%clk 0:00:47]}  Rc5 {[%clk 0:01:08]} 33. Kd2 {[%clk 0:00:48]}  Ke7 {[%clk 0:01:07]} 34. Kc3 {[%clk 0:00:49]}  Rc8 {[%clk 0:00:57]} 35. Rd1 {[%clk 0:00:46]}  e5 {[%clk 0:00:53]} 36. e4 {[%clk 0:00:41]}  Rb8 {[%clk 0:00:43]} 37. Rd2 {[%clk 0:00:40]}  Rc8 {[%clk 0:00:40]} 38. Rb2 {[%clk 0:00:37]}  Rd8 {[%clk 0:00:37]} 39. Rb7+ {[%clk 0:00:32]}  Kf6 {[%clk 0:00:36]} 40. f4 {[%clk 0:00:30]}  exf4 {[%clk 0:00:31]} 41. gxf4 {[%clk 0:00:30]}  Rd3+ {[%clk 0:00:30]} 42. Kxc4 {[%clk 0:00:31]}  Rd2 {[%clk 0:00:30]} 43. Rb6+ {[%clk 0:00:31]}  Ke7 {[%clk 0:00:30]} 44. Rb7+ {[%clk 0:00:32]}  Ke8 {[%clk 0:00:29]} 45. Rb8+ {[%clk 0:00:32]}  Ke7 {[%clk 0:00:25]} 46. Rb7+ {[%clk 0:00:33]}  Ke6 {[%clk 0:00:25]} 47. Rb6+ {[%clk 0:00:32]}  Ke7 {[%clk 0:00:10]} 48. Rb7+ {[%clk 0:00:32]} 1/2-1/2


[Site "https://www.chess.com"]

[Event "Titled Tuesday Blitz March 28 Late 2023"]
[White "Goroshkov, Maksym"]
[Black "Dmitrenko, Viktor"]
[WhiteFideId "14142716"]
[BlackFideId "14110270"]
[WhiteElo "2322"]
[BlackElo "2292"]
[Result "1-0"]
[Round "03"]
[TimeControl "180+2"]
[Date "2023.03.28"]
[WhiteClock "0:00:43"]
[BlackClock "0:00:07"]

1. e4 {[%clk 0:03:00]}  e6 {[%clk 0:02:57]} 2. d4 {[%clk 0:03:00]}  d5 {[%clk 0:02:57]} 3. exd5 {[%clk 0:03:01]}  exd5 {[%clk 0:02:57]} 4. c4 {[%clk 0:03:02]}  Nf6 {[%clk 0:02:56]} 5. Nc3 {[%clk 0:03:02]}  Be7 {[%clk 0:02:55]} 6. Nf3 {[%clk 0:03:02]}  Bg4 {[%clk 0:02:53]} 7. cxd5 {[%clk 0:03:02]}  O-O {[%clk 0:02:52]} 8. Be2 {[%clk 0:03:02]}  Nxd5 {[%clk 0:02:50]} 9. O-O {[%clk 0:03:00]}  c6 {[%clk 0:02:45]} 10. h3 {[%clk 0:03:00]}  Be6 {[%clk 0:02:44]} 11. Ne5 {[%clk 0:02:59]}  Nd7 {[%clk 0:02:41]} 12. f4 {[%clk 0:02:55]}  N7f6 {[%clk 0:02:35]} 13. f5 {[%clk 0:02:53]}  Bc8 {[%clk 0:02:34]} 14. Bc4 {[%clk 0:02:45]}  Qa5 {[%clk 0:02:22]} 15. Bd2 {[%clk 0:02:42]}  Qb6 {[%clk 0:02:19]} 16. Bg5 {[%clk 0:02:26]}  h6 {[%clk 0:01:58]} 17. Nxd5 {[%clk 0:02:04]}  cxd5 {[%clk 0:01:54]} 18. Bxd5 {[%clk 0:01:37]}  Nxd5 {[%clk 0:01:44]} 19. Bxe7 {[%clk 0:01:37]}  Nxe7 {[%clk 0:01:44]} 20. f6 {[%clk 0:01:37]}  Ng6 {[%clk 0:01:39]} 21. fxg7 {[%clk 0:01:35]}  Kxg7 {[%clk 0:01:37]} 22. Nxg6 {[%clk 0:01:27]}  Qxg6 {[%clk 0:01:31]} 23. Rf3 {[%clk 0:01:27]}  Kh7 {[%clk 0:01:13]} 24. Qb3 {[%clk 0:01:25]}  b6 {[%clk 0:00:54]} 25. Raf1 {[%clk 0:01:23]}  Be6 {[%clk 0:00:53]} 26. d5 {[%clk 0:01:23]}  Bd7 {[%clk 0:00:48]} 27. Rf6 {[%clk 0:01:21]}  Qg7 {[%clk 0:00:40]} 28. Qd3+ {[%clk 0:01:19]}  Kh8 {[%clk 0:00:39]} 29. Qe3 {[%clk 0:01:19]}  Kh7 {[%clk 0:00:37]} 30. Qe4+ {[%clk 0:01:19]}  Kh8 {[%clk 0:00:37]} 31. Qe5 {[%clk 0:00:58]}  Rae8 {[%clk 0:00:24]} 32. Qd6 {[%clk 0:00:53]}  Bc8 {[%clk 0:00:09]} 33. Rxh6+ {[%clk 0:00:50]}  Kg8 {[%clk 0:00:10]} 34. Rhf6 {[%clk 0:00:46]}  Kh7 {[%clk 0:00:08]} 35. R6f4 {[%clk 0:00:44]}  f5 {[%clk 0:00:06]} 36. Rh4+ {[%clk 0:00:43]}  Kg8 {[%clk 0:00:07]} 37. Rh6 {[%clk 0:00:43]} 1-0


[Site "https://www.chess.com"]